Workbook

Sheet 電卓
O1: TIT_Excel電卓 | V1: =IF(Y2=1,"無効","") ->  | BG1: =TODAY() -> 2021-02-25
K3: =IF(Z2="＝",Z2,"") ->  | L3: =IF(AA2="","",AA2) ->  | Y3: 桁数 | Z3: 実数 | AM3: 前回 入力 | AN3: 少数 | AO3: 種別
K4: =IF(Z2="","",IF(Z2<>"＝",Z2,"")) ->  | L4: =IF(Z24="","",Z24) ->  | Y4: =12-COUNTBLANK(L4:W4) -> 0 | Z4: =IF(W4="－",0,IF(W4="",0,VALUE(L4&M4&N4&O4&P4&Q4&R4&S4&T4&U4&V4&W4))) -> 0 | AN4: =COUNTIF(L4:W4,".") -> 0 | AO4: =IF(AM4="",0,IF(OR(AM4=".",AM4="－",AND(AM4>=0,AM4<=9)),1,2)) -> 0
K6: 履 歴 | BF6: 123
K7: 演算子 | L7: 入力内容 | R7: 計算結果 | Y7: 桁 | Z7: 11 | AA7: =Z7-1 -> 10 | AB7: =AA7-1 -> 9 | AC7: =AB7-1 -> 8 | AD7: =AC7-1 -> 7 | AE7: =AD7-1 -> 6 | AF7: =AE7-1 -> 5 | AG7: =AF7-1 -> 4 | AH7: =AG7-1 -> 3 | AI7: =AH7-1 -> 2 | AJ7: =AI7-1 -> 1 | AK7: =AJ7-1 -> 0 | AM7: 桁 | AN7: 11 | AO7: =AN7-1 -> 10 | AP7: =AO7-1 -> 9 | AQ7: 8 | AR7: 7 | AS7: 6 | AT7: 5 | AU7: 4 | AV7: 3 | AW7: 2 | AX7: 1 | AY7: 0 | BE7: =IF(ISERROR(LEN(BF6)-FIND(".",BF6))=TRUE,0,LEN(BF6)-FIND(".",BF6)) -> 0 | BF7: =IF(BE7>30,VLOOKUP(30,BE8:BF32,2,FALSE),VLOOKUP(BE7,BE8:BF32,2,FALSE)) -> #,##0;[赤]-#,##0
J8: =IF(ISERROR(VLOOKUP(1,計算履歴!$A$4:$F$1003,3,FALSE))=TRUE,"",VLOOKUP(1,計算履歴!$A$4:$F$1003,3,FALSE)) ->  | K8: =IF($J8="","",IF(VLOOKUP($J8,計算履歴!$C$4:$F$1003,2,FALSE)=0,"",VLOOKUP($J8,計算履歴!$C$4:$F$1003,2,FALSE))) ->  | L8: =IF($J8="","",IF(VLOOKUP($J8,計算履歴!$C$4:$F$1003,3,FALSE)=0,"",VLOOKUP($J8,計算履歴!$C$4:$F$1003,3,FALSE))) ->  | R8: =IF($J8="","",IF(VLOOKUP($J8,計算履歴!$C$4:$F$1003,4,FALSE)=0,"",VLOOKUP($J8,計算履歴!$C$4:$F$1003,4,FALSE))) ->  | Y8: =LEN(L8) -> 0 | Z8: =IF(Z$7<$Y8,MID($L8,$Y8-Z$7,1),"") ->  | AN8: =IF($AM8>12,MID($R8,12-AN$7,1),IF(AN$7<$AM8,MID($R8,$AM8-AN$7,1),"")) ->  | BE8: 0 | BF8: #,##0;[赤]-#,##0
J9: =IF(J8="","",IF(VLOOKUP(J8+1,計算履歴!$C$4:$D$1003,2,FALSE)="","",J8+1)) ->  | K9: =IF($J9="","",IF(VLOOKUP($J9,計算履歴!$C$4:$F$1003,2,FALSE)=0,"",VLOOKUP($J9,計算履歴!$C$4:$F$1003,2,FALSE))) ->  | L9: =IF($J9="","",IF(VLOOKUP($J9,計算履歴!$C$4:$F$1003,3,FALSE)=0,"",VLOOKUP($J9,計算履歴!$C$4:$F$1003,3,FALSE))) ->  | R9: =IF($J9="","",IF(VLOOKUP($J9,計算履歴!$C$4:$F$1003,4,FALSE)=0,"",VLOOKUP($J9,計算履歴!$C$4:$F$1003,4,FALSE))) ->  | Y9: 0 | BE9: 1 | BF9: #,##0.0;[赤]-#,##0.0
J10: =IF(J9="","",IF(VLOOKUP(J9+1,計算履歴!$C$4:$D$1003,2,FALSE)="","",J9+1)) ->  | K10: =IF($J10="","",IF(VLOOKUP($J10,計算履歴!$C$4:$F$1003,2,FALSE)=0,"",VLOOKUP($J10,計算履歴!$C$4:$F$1003,2,FALSE))) ->  | L10: =IF($J10="","",IF(VLOOKUP($J10,計算履歴!$C$4:$F$1003,3,FALSE)=0,"",VLOOKUP($J10,計算履歴!$C$4:$F$1003,3,FALSE))) ->  | R10: =IF($J10="","",IF(VLOOKUP($J10,計算履歴!$C$4:$F$1003,4,FALSE)=0,"",VLOOKUP($J10,計算履歴!$C$4:$F$1003,4,FALSE))) ->  | Y10: 0 | BE10: 2 | BF10: #,##0.00;[赤]-#,##0.00
J11: =IF(J10="","",IF(VLOOKUP(J10+1,計算履歴!$C$4:$D$1003,2,FALSE)="","",J10+1)) ->  | K11: =IF($J11="","",IF(VLOOKUP($J11,計算履歴!$C$4:$F$1003,2,FALSE)=0,"",VLOOKUP($J11,計算履歴!$C$4:$F$1003,2,FALSE))) ->  | L11: =IF($J11="","",IF(VLOOKUP($J11,計算履歴!$C$4:$F$1003,3,FALSE)=0,"",VLOOKUP($J11,計算履歴!$C$4:$F$1003,3,FALSE))) ->  | R11: =IF($J11="","",IF(VLOOKUP($J11,計算履歴!$C$4:$F$1003,4,FALSE)=0,"",VLOOKUP($J11,計算履歴!$C$4:$F$1003,4,FALSE))) ->  | Y11: 0 | BE11: 3 | BF11: #,##0.000;[赤]-#,##0.000
J12: =IF(J11="","",IF(VLOOKUP(J11+1,計算履歴!$C$4:$D$1003,2,FALSE)="","",J11+1)) ->  | K12: =IF($J12="","",IF(VLOOKUP($J12,計算履歴!$C$4:$F$1003,2,FALSE)=0,"",VLOOKUP($J12,計算履歴!$C$4:$F$1003,2,FALSE))) ->  | L12: =IF($J12="","",IF(VLOOKUP($J12,計算履歴!$C$4:$F$1003,3,FALSE)=0,"",VLOOKUP($J12,計算履歴!$C$4:$F$1003,3,FALSE))) ->  | R12: =IF($J12="","",IF(VLOOKUP($J12,計算履歴!$C$4:$F$1003,4,FALSE)=0,"",VLOOKUP($J12,計算履歴!$C$4:$F$1003,4,FALSE))) ->  | Y12: 0 | BE12: 4 | BF12: #,##0.0000;[赤]-#,##0.0000
J13: =IF(J12="","",IF(VLOOKUP(J12+1,計算履歴!$C$4:$D$1003,2,FALSE)="","",J12+1)) ->  | K13: =IF($J13="","",IF(VLOOKUP($J13,計算履歴!$C$4:$F$1003,2,FALSE)=0,"",VLOOKUP($J13,計算履歴!$C$4:$F$1003,2,FALSE))) ->  | L13: =IF($J13="","",IF(VLOOKUP($J13,計算履歴!$C$4:$F$1003,3,FALSE)=0,"",VLOOKUP($J13,計算履歴!$C$4:$F$1003,3,FALSE))) ->  | R13: =IF($J13="","",IF(VLOOKUP($J13,計算履歴!$C$4:$F$1003,4,FALSE)=0,"",VLOOKUP($J13,計算履歴!$C$4:$F$1003,4,FALSE))) ->  | Y13: 0 | BE13: 5 | BF13: #,##0.00000;[赤]-#,##0.00000
J14: =IF(J13="","",IF(VLOOKUP(J13+1,計算履歴!$C$4:$D$1003,2,FALSE)="","",J13+1)) ->  | K14: =IF($J14="","",IF(VLOOKUP($J14,計算履歴!$C$4:$F$1003,2,FALSE)=0,"",VLOOKUP($J14,計算履歴!$C$4:$F$1003,2,FALSE))) ->  | L14: =IF($J14="","",IF(VLOOKUP($J14,計算履歴!$C$4:$F$1003,3,FALSE)=0,"",VLOOKUP($J14,計算履歴!$C$4:$F$1003,3,FALSE))) ->  | R14: =IF($J14="","",IF(VLOOKUP($J14,計算履歴!$C$4:$F$1003,4,FALSE)=0,"",VLOOKUP($J14,計算履歴!$C$4:$F$1003,4,FALSE))) ->  | Y14: 0 | BE14: 6 | BF14: #,##0.000000;[赤]-#,##0.000000
J15: =IF(J14="","",IF(VLOOKUP(J14+1,計算履歴!$C$4:$D$1003,2,FALSE)="","",J14+1)) ->  | K15: =IF($J15="","",IF(VLOOKUP($J15,計算履歴!$C$4:$F$1003,2,FALSE)=0,"",VLOOKUP($J15,計算履歴!$C$4:$F$1003,2,FALSE))) ->  | L15: =IF($J15="","",IF(VLOOKUP($J15,計算履歴!$C$4:$F$1003,3,FALSE)=0,"",VLOOKUP($J15,計算履歴!$C$4:$F$1003,3,FALSE))) ->  | R15: =IF($J15="","",IF(VLOOKUP($J15,計算履歴!$C$4:$F$1003,4,FALSE)=0,"",VLOOKUP($J15,計算履歴!$C$4:$F$1003,4,FALSE))) ->  | Y15: 0 | BE15: 7 | BF15: #,##0.0000000;[赤]-#,##0.0000000
J16: =IF(J15="","",IF(VLOOKUP(J15+1,計算履歴!$C$4:$D$1003,2,FALSE)="","",J15+1)) ->  | K16: =IF($J16="","",IF(VLOOKUP($J16,計算履歴!$C$4:$F$1003,2,FALSE)=0,"",VLOOKUP($J16,計算履歴!$C$4:$F$1003,2,FALSE))) ->  | L16: =IF($J16="","",IF(VLOOKUP($J16,計算履歴!$C$4:$F$1003,3,FALSE)=0,"",VLOOKUP($J16,計算履歴!$C$4:$F$1003,3,FALSE))) ->  | R16: =IF($J16="","",IF(VLOOKUP($J16,計算履歴!$C$4:$F$1003,4,FALSE)=0,"",VLOOKUP($J16,計算履歴!$C$4:$F$1003,4,FALSE))) ->  | Y16: 0 | BE16: 8 | BF16: #,##0.00000000;[赤]-#,##0.00000000
J17: =IF(J16="","",IF(VLOOKUP(J16+1,計算履歴!$C$4:$D$1003,2,FALSE)="","",J16+1)) ->  | K17: =IF($J17="","",IF(VLOOKUP($J17,計算履歴!$C$4:$F$1003,2,FALSE)=0,"",VLOOKUP($J17,計算履歴!$C$4:$F$1003,2,FALSE))) ->  | L17: =IF($J17="","",IF(VLOOKUP($J17,計算履歴!$C$4:$F$1003,3,FALSE)=0,"",VLOOKUP($J17,計算履歴!$C$4:$F$1003,3,FALSE))) ->  | R17: =IF($J17="","",IF(VLOOKUP($J17,計算履歴!$C$4:$F$1003,4,FALSE)=0,"",VLOOKUP($J17,計算履歴!$C$4:$F$1003,4,FALSE))) ->  | Y17: 0 | BE17: 9 | BF17: #,##0.000000000;[赤]-#,##0.000000000
J18: =IF(J17="","",IF(VLOOKUP(J17+1,計算履歴!$C$4:$D$1003,2,FALSE)="","",J17+1)) ->  | K18: =IF($J18="","",IF(VLOOKUP($J18,計算履歴!$C$4:$F$1003,2,FALSE)=0,"",VLOOKUP($J18,計算履歴!$C$4:$F$1003,2,FALSE))) ->  | L18: =IF($J18="","",IF(VLOOKUP($J18,計算履歴!$C$4:$F$1003,3,FALSE)=0,"",VLOOKUP($J18,計算履歴!$C$4:$F$1003,3,FALSE))) ->  | R18: =IF($J18="","",IF(VLOOKUP($J18,計算履歴!$C$4:$F$1003,4,FALSE)=0,"",VLOOKUP($J18,計算履歴!$C$4:$F$1003,4,FALSE))) ->  | Y18: 0 | BE18: 10 | BF18: #,##0.0000000000;[赤]-#,##0.0000000000
J19: =IF(J18="","",IF(VLOOKUP(J18+1,計算履歴!$C$4:$D$1003,2,FALSE)="","",J18+1)) ->  | K19: =IF($J19="","",IF(VLOOKUP($J19,計算履歴!$C$4:$F$1003,2,FALSE)=0,"",VLOOKUP($J19,計算履歴!$C$4:$F$1003,2,FALSE))) ->  | L19: =IF($J19="","",IF(VLOOKUP($J19,計算履歴!$C$4:$F$1003,3,FALSE)=0,"",VLOOKUP($J19,計算履歴!$C$4:$F$1003,3,FALSE))) ->  | R19: =IF($J19="","",IF(VLOOKUP($J19,計算履歴!$C$4:$F$1003,4,FALSE)=0,"",VLOOKUP($J19,計算履歴!$C$4:$F$1003,4,FALSE))) ->  | Y19: 0 | BE19: 11 | BF19: #,##0.00000000000;[赤]-#,##0.00000000000
J20: =IF(J19="","",IF(VLOOKUP(J19+1,計算履歴!$C$4:$D$1003,2,FALSE)="","",J19+1)) ->  | K20: =IF($J20="","",IF(VLOOKUP($J20,計算履歴!$C$4:$F$1003,2,FALSE)=0,"",VLOOKUP($J20,計算履歴!$C$4:$F$1003,2,FALSE))) ->  | L20: =IF($J20="","",IF(VLOOKUP($J20,計算履歴!$C$4:$F$1003,3,FALSE)=0,"",VLOOKUP($J20,計算履歴!$C$4:$F$1003,3,FALSE))) ->  | R20: =IF($J20="","",IF(VLOOKUP($J20,計算履歴!$C$4:$F$1003,4,FALSE)=0,"",VLOOKUP($J20,計算履歴!$C$4:$F$1003,4,FALSE))) ->  | Y20: 0 | BE20: 12 | BF20: #,##0.000000000000;[赤]-#,##0.000000000000
J21: =IF(J20="","",IF(VLOOKUP(J20+1,計算履歴!$C$4:$D$1003,2,FALSE)="","",J20+1)) ->  | K21: =IF($J21="","",IF(VLOOKUP($J21,計算履歴!$C$4:$F$1003,2,FALSE)=0,"",VLOOKUP($J21,計算履歴!$C$4:$F$1003,2,FALSE))) ->  | L21: =IF($J21="","",IF(VLOOKUP($J21,計算履歴!$C$4:$F$1003,3,FALSE)=0,"",VLOOKUP($J21,計算履歴!$C$4:$F$1003,3,FALSE))) ->  | R21: =IF($J21="","",IF(VLOOKUP($J21,計算履歴!$C$4:$F$1003,4,FALSE)=0,"",VLOOKUP($J21,計算履歴!$C$4:$F$1003,4,FALSE))) ->  | Y21: 0 | BE21: 13 | BF21: #,##0.0000000000000;[赤]-#,##0.0000000000000
J22: =IF(J21="","",IF(VLOOKUP(J21+1,計算履歴!$C$4:$D$1003,2,FALSE)="","",J21+1)) ->  | K22: =IF($J22="","",IF(VLOOKUP($J22,計算履歴!$C$4:$F$1003,2,FALSE)=0,"",VLOOKUP($J22,計算履歴!$C$4:$F$1003,2,FALSE))) ->  | L22: =IF($J22="","",IF(VLOOKUP($J22,計算履歴!$C$4:$F$1003,3,FALSE)=0,"",VLOOKUP($J22,計算履歴!$C$4:$F$1003,3,FALSE))) ->  | R22: =IF($J22="","",IF(VLOOKUP($J22,計算履歴!$C$4:$F$1003,4,FALSE)=0,"",VLOOKUP($J22,計算履歴!$C$4:$F$1003,4,FALSE))) ->  | Y22: 0 | BE22: 14 | BF22: #,##0.00000000000000;[赤]-#,##0.00000000000000
BE23: 15 | BF23: #,##0.000000000000000;[赤]-#,##0.000000000000000
O24: 株式会社つくばＩＴパートナー | BE24: 16 | BF24: #,##0.0000000000000000;[赤]-#,##0.0000000000000000
N25: Copyright © 2018 Tsukuba IT Partner Co., Ltd. All Rights Reserved. | BE25: 17 | BF25: #,##0.00000000000000000;[赤]-#,##0.00000000000000000
BE26: 18 | BF26: #,##0.000000000000000000;[赤]-#,##0.000000000000000000
BE27: 19 | BF27: #,##0.0000000000000000000;[赤]-#,##0.0000000000000000000
BE28: 20 | BF28: #,##0.0000000000000000000;[赤]-#,##0.0000000000000000000

Sheet 計算履歴
E1: 《計 算 履 歴》 | F1: =TODAY() -> 2021-02-25
A2: 開始№ | B2: 対象 | C2: 件数 | D2: 演算子 | E2: 履 歴
A3: =IF(C3<=15,1,C3-13) -> 1 | C3: =COUNTIF(B4:B1003,"○") -> 0 | E3: 入力 | F3: 計算 | H3: 桁 | I3: 11 | J3: =I3-1 -> 10 | K3: =J3-1 -> 9 | L3: 8 | M3: 7 | N3: 6 | O3: 5 | P3: 4 | Q3: 3 | R3: 2 | S3: 1 | T3: 0
A4: =IF(AND(D4="",E4=""),0,IF(AND(C4>=$A$3,C4<=$C$3),1,0)) -> 0 | B4: =IF(E4<>"","○","") ->  | C4: 1 | H4: =LEN(E4) -> 0 | I4: =IF(I$3<$H4,MID($E4,$H4-I$3,1),"") ->  | J4: =IF(J$3<$H4,MID($E4,$H4-J$3,1),"") -> 
A5: =IF(AND(D5="",E5=""),0,IF(AND(C5>=$A$3,C5<=$C$3),A4+1,0)) -> 0 | B5: =IF(E5<>"","○","") ->  | C5: =C4+1 -> 2 | H5: =LEN(E5) -> 0 | I5: =IF(I$3<$H5,MID($E5,$H5-I$3,1),"") -> 
A6: 0 | C6: =C5+1 -> 3 | H6: 0
A7: 0 | C7: 4 | H7: 0
A8: 0 | C8: 5 | H8: 0
A9: 0 | C9: 6 | H9: 0
A10: 0 | C10: 7 | H10: 0
A11: 0 | C11: 8 | H11: 0
A12: 0 | C12: 9 | H12: 0
A13: 0 | C13: 10 | H13: 0
A14: 0 | C14: 11 | H14: 0
A15: 0 | C15: 12 | H15: 0
A16: 0 | C16: 13 | H16: 0
A17: 0 | C17: 14 | H17: 0
A18: 0 | C18: =C17+1 -> 15 | H18: 0
A19: 0 | C19: 16 | H19: =LEN(E19) -> 0
A20: 0 | C20: 17 | H20: 0
A21: 0 | C21: 18 | H21: 0 | I21: =IF(I$3<$H21,MID($E21,$H21-I$3,1),"") -> 
A22: 0 | C22: 19 | H22: 0
A23: 0 | C23: 20 | H23: 0
A24: 0 | C24: 21 | H24: 0
A25: 0 | C25: 22 | H25: 0
A26: 0 | C26: 23 | H26: 0
A27: 0 | C27: 24 | H27: 0
A28: 0 | C28: 25 | H28: 0
A29: 0 | C29: 26 | H29: 0
A30: 0 | C30: 27 | H30: 0
A31: 0 | C31: 28 | H31: 0
A32: 0 | C32: 29 | H32: 0
A33: 0 | C33: 30 | H33: 0
A34: 0 | C34: 31 | H34: 0
A35: 0 | C35: 32 | H35: 0
A36: 0 | C36: 33 | H36: 0
A37: 0 | C37: 34 | H37: 0
A38: 0 | C38: 35 | H38: 0
A39: 0 | C39: 36 | H39: 0
A40: 0 | C40: 37 | H40: 0
A41: 0 | C41: 38 | H41: 0
A42: 0 | C42: 39 | H42: 0 | L42: =IF(L$3<$H42,MID($E42,$H42-L$3,1),"") -> 
A43: 0 | C43: 40 | H43: 0 | I43: =IF(I$3<$H43,MID($E43,$H43-I$3,1),"") -> 
A44: 0 | C44: 41 | H44: 0
A45: 0 | C45: 42 | H45: 0
A46: 0 | C46: 43 | H46: 0
A47: 0 | C47: 44 | H47: 0
A48: 0 | C48: 45 | H48: 0
A49: 0 | C49: 46 | H49: 0
A50: 0 | C50: 47 | H50: 0
A51: 0 | C51: 48 | H51: 0
A52: 0 | C52: 49 | H52: 0
A53: 0 | C53: 50 | H53: 0
A54: 0 | C54: 51 | H54: 0
A55: 0 | C55: 52 | H55: 0
A56: 0 | C56: 53 | H56: 0
A57: 0 | C57: 54 | H57: 0
A58: 0 | C58: 55 | H58: 0
A59: 0 | C59: 56 | H59: 0
A60: 0 | C60: 57 | H60: 0
A61: 0 | C61: 58 | H61: 0
A62: 0 | C62: 59 | H62: 0
A63: 0 | C63: 60 | H63: 0
A64: 0 | C64: 61 | H64: 0
A65: 0 | C65: 62 | H65: 0 | N65: =IF(N$3<$H65,MID($E65,$H65-N$3,1),"") -> 
A66: 0 | C66: 63 | H66: 0
A67: 0 | C67: 64 | H67: 0
A68: 0 | C68: 65 | H68: 0
A69: =IF(AND(D69="",E69=""),0,IF(AND(C69>=$A$3,C69<=$C$3),A68+1,0)) -> 0 | B69: =IF(E69<>"","○","") ->  | C69: 66 | H69: 0
A70: 0 | C70: 67 | H70: 0
A71: 0 | C71: 68 | H71: 0
A72: 0 | C72: 69 | H72: 0
A73: 0 | C73: 70 | H73: 0
A74: 0 | C74: 71 | H74: 0
A75: 0 | C75: 72 | H75: 0
A76: 0 | C76: 73 | H76: 0
A77: 0 | C77: 74 | H77: 0
A78: 0 | C78: 75 | H78: 0
A79: 0 | C79: 76 | H79: 0
A80: 0 | C80: 77 | H80: 0
A81: 0 | C81: 78 | H81: 0
A82: 0 | C82: =C81+1 -> 79 | H82: 0
A83: 0 | C83: 80 | H83: =LEN(E83) -> 0
A84: 0 | C84: 81 | H84: 0
A85: 0 | C85: 82 | H85: 0
A86: 0 | C86: 83 | H86: 0
A87: 0 | C87: 84 | H87: 0
A88: 0 | C88: 85 | H88: 0 | P88: =IF(P$3<$H88,MID($E88,$H88-P$3,1),"") -> 
A89: 0 | C89: 86 | H89: 0
A90: 0 | C90: 87 | H90: 0
A91: 0 | C91: 88 | H91: 0
A92: 0 | C92: 89 | H92: 0
A93: 0 | C93: 90 | H93: 0
A94: 0 | C94: 91 | H94: 0
A95: 0 | C95: 92 | H95: 0
A96: 0 | C96: 93 | H96: 0
A97: 0 | C97: 94 | H97: 0
A98: 0 | C98: 95 | H98: 0
A99: 0 | C99: 96 | H99: 0
A100: 0 | C100: 97 | H100: 0
A101: 0 | C101: 98 | H101: 0
A102: 0 | C102: 99 | H102: 0
A103: 0 | C103: 100 | H103: 0
A104: 0 | C104: 101 | H104: 0
A105: 0 | C105: 102 | H105: 0
A106: 0 | C106: 103 | H106: 0
A107: 0 | C107: 104 | H107: 0 | I107: =IF(I$3<$H107,MID($E107,$H107-I$3,1),"") -> 
A108: 0 | C108: 105 | H108: 0
A109: 0 | C109: 106 | H109: 0
A110: 0 | C110: 107 | H110: 0
A111: 0 | C111: 108 | H111: 0 | R111: =IF(R$3<$H111,MID($E111,$H111-R$3,1),"") -> 
A112: 0 | C112: 109 | H112: 0
A113: 0 | C113: 110 | H113: 0
A114: 0 | C114: 111 | H114: 0
A115: 0 | C115: 112 | H115: 0
A116: 0 | C116: 113 | H116: 0
A117: 0 | C117: 114 | H117: 0
A118: 0 | C118: 115 | H118: 0
A119: 0 | C119: 116 | H119: 0
A120: 0 | C120: 117 | H120: 0
A121: 0 | C121: 118 | H121: 0
A122: 0 | C122: 119 | H122: 0
A123: 0 | C123: 120 | H123: 0
A124: 0 | C124: 121 | H124: 0
A125: 0 | C125: 122 | H125: 0
A126: 0 | C126: 123 | H126: 0
A127: 0 | C127: 124 | H127: 0
A128: 0 | C128: 125 | H128: 0
A129: 0 | C129: 126 | H129: 0
A130: 0 | C130: 127 | H130: 0
A131: 0 | C131: 128 | H131: 0
A132: 0 | C132: 129 | H132: 0
A133: =IF(AND(D133="",E133=""),0,IF(AND(C133>=$A$3,C133<=$C$3),A132+1,0)) -> 0 | B133: =IF(E133<>"","○","") ->  | C133: 130 | H133: 0
A134: 0 | C134: 131 | H134: 0 | T134: =IF(T$3<$H134,MID($E134,$H134-T$3,1),"") -> 
A135: 0 | C135: 132 | H135: 0
A136: 0 | C136: 133 | H136: 0
A137: 0 | C137: 134 | H137: 0
A138: 0 | C138: 135 | H138: 0
A139: 0 | C139: 136 | H139: 0
A140: 0 | C140: 137 | H140: 0
A141: 0 | C141: 138 | H141: 0
A142: 0 | C142: 139 | H142: 0
A143: 0 | C143: 140 | H143: 0
A144: 0 | C144: 141 | H144: 0
A145: 0 | C145: 142 | H145: 0
A146: 0 | C146: =C145+1 -> 143 | H146: 0
A147: 0 | C147: 144 | H147: =LEN(E147) -> 0
A148: 0 | C148: 145 | H148: 0
A149: 0 | C149: 146 | H149: 0
A150: 0 | C150: 147 | H150: 0
A151: 0 | C151: 148 | H151: 0
A152: 0 | C152: 149 | H152: 0
A153: 0 | C153: 150 | H153: 0
A154: 0 | C154: 151 | H154: 0
A155: 0 | C155: 152 | H155: 0
A156: 0 | C156: 153 | H156: 0
A157: 0 | C157: 154 | H157: 0
A158: 0 | C158: 155 | H158: 0 | K158: =IF(K$3<$H158,MID($E158,$H158-K$3,1),"") -> 
A159: 0 | C159: 156 | H159: 0
A160: 0 | C160: 157 | H160: 0
A161: 0 | C161: 158 | H161: 0
A162: 0 | C162: 159 | H162: 0
A163: 0 | C163: 160 | H163: 0
A164: 0 | C164: 161 | H164: 0
A165: 0 | C165: 162 | H165: 0
A166: 0 | C166: 163 | H166: 0
A167: 0 | C167: 164 | H167: 0
A168: 0 | C168: 165 | H168: 0
A169: 0 | C169: 166 | H169: 0
A170: 0 | C170: 167 | H170: 0
A171: 0 | C171: 168 | H171: 0 | I171: =IF(I$3<$H171,MID($E171,$H171-I$3,1),"") -> 
A172: 0 | C172: 169 | H172: 0
A173: 0 | C173: 170 | H173: 0
A174: 0 | C174: 171 | H174: 0
A175: 0 | C175: 172 | H175: 0
A176: 0 | C176: 173 | H176: 0
A177: 0 | C177: 174 | H177: 0
A178: 0 | C178: 175 | H178: 0
A179: 0 | C179: 176 | H179: 0
A180: 0 | C180: 177 | H180: 0
A181: 0 | C181: 178 | H181: 0 | M181: =IF(M$3<$H181,MID($E181,$H181-M$3,1),"") -> 
A182: 0 | C182: 179 | H182: 0
A183: 0 | C183: 180 | H183: 0
A184: 0 | C184: 181 | H184: 0
A185: 0 | C185: 182 | H185: 0
A186: 0 | C186: 183 | H186: 0
A187: 0 | C187: 184 | H187: 0
A188: 0 | C188: 185 | H188: 0
A189: 0 | C189: 186 | H189: 0
A190: 0 | C190: 187 | H190: 0
A191: 0 | C191: 188 | H191: 0
A192: 0 | C192: 189 | H192: 0
A193: 0 | C193: 190 | H193: 0
A194: 0 | C194: 191 | H194: 0
A195: 0 | C195: 192 | H195: 0
A196: 0 | C196: 193 | H196: 0
A197: =IF(AND(D197="",E197=""),0,IF(AND(C197>=$A$3,C197<=$C$3),A196+1,0)) -> 0 | B197: =IF(E197<>"","○","") ->  | C197: 194 | H197: 0
A198: 0 | C198: 195 | H198: 0
A199: 0 | C199: 196 | H199: 0
A200: 0 | C200: 197 | H200: 0
... 803 more rows
